Cogmind - Beta 16 @@@ ROGUE MODE // 2026.01.28 @ 20:48:50 Player: luckinvolved Result: Destroyed by N4-PDY(R) with Subdweller Laser Performance ------------- Evolutions (0) 0 Regions Visited (2) 400 Robots Destroyed (46) 230 Value Destroyed (1222) 1222 Prototype IDs (0) 0 Alien Tech Used (0) 0 Bonus (0) 0 TOTAL SCORE: 1852 Bonus ------- None Cogmind --------- Core Integrity 0/250 Matter 242/300 Energy 250/250 System Corruption 2% Temperature Cool (6) Movement Treading (250) Ox1 Location -10/Subcaves Parts ------- > --- POWER (1) -------- Ion Engine > --- PROPULSION (2) --- Improved Treads Spiked Treads > --- UTILITY (2) ------ High-capacity Storage Unit Light Armor Plating > --- WEAPON (2) ------- Battle Rifle Subdweller Machine Gun > --- INVENTORY (20) --- Light Nuclear Core Light Treads Light Treads Light Treads Improved Treads Improved Treads Arachnoskeleton Cooling System Large Matter Pod (150) Light Armor Plating Makeshift Thermal Plating Shield Generator Heavy EM Pulse Gun Heavy EM Pulse Gun Grenade Launcher Grenade Launcher Dirty Datajack (20) Multitool Peak State ------------ > --- POWER ------------ Ion Engine > --- PROPULSION ------- Improved Treads Spiked Treads > --- UTILITY ---------- High-capacity Storage Unit Light Armor Plating > --- WEAPON ----------- Battle Rifle Subdweller Machine Gun > --- INVENTORY -------- Light Nuclear Core Light Treads Light Treads Light Treads Improved Treads Improved Treads Arachnoskeleton Cooling System Large Matter Pod Light Armor Plating Light Armor Plating Light Armor Plating Shield Generator Heavy EM Pulse Gun Heavy EM Pulse Gun Grenade Launcher Grenade Launcher Dirty Datajack [Rating: 16] Favorites ----------- Power Ion Engine Engine Ion Engine Propulsion Improved Treads Treads Improved Treads Utility High-capacity Storage Unit Device Shield Generator Storage High-capacity Storage Unit Protection Light Armor Plating Weapon Light Assault Rifle Energy Gun Heavy EM Pulse Gun Ballistic Gun Light Assault Rifle Launcher Grenade Launcher Build | -11 -10 -10 ------- Run | Yrd Mat Sub Slots Evolved . | . . . Power . | . . . Propulsion . | . . . Utility . | . . . Weapon . | . . . Parts Attached 28 | 7 13 8 Power 2 | 1 . 1 Engine 2 | 1 . 1 Core . | . . . Reactor . | . . . Propulsion 7 | 2 4 1 Treads 7 | 2 4 1 Leg . | . . . Wheel . | . . . Hover . | . . . Flight . | . . . Utility 10 | 2 5 3 Device 3 | 1 2 . Storage 4 | 1 3 . Processor . | . . . Hackware . | . . . Protection 3 | . . 3 Artifact . | . . . Weapon 9 | 2 4 3 Energy Gun 2 | . 2 . Energy Cannon . | . . . Ballistic Gun 5 | 2 . 3 Ballistic Cannon . | . . . Launcher 2 | . 2 . Special Weapon . | . . . Impact Weapon . | . . . Slashing Weapon . | . . . Piercing Weapon . | . . . Special Melee Weapon . | . . . Unidentified Prototypes . | . . . Parts Lost 4 | . . 4 Power 1 | . . 1 Propulsion . | . . . Utility 2 | . . 2 Weapon 1 | . . 1 Highest Loss Streak 3 | . . 3 To Critical Strikes . | . . . Average Backups 15 | 3 12 18 Power 1 | . 1 1 Propulsion 5 | 1 4 6 Utility 4 | . 3 5 Weapon 3 | . 3 3 Tool/Special . | . . . Unused Backups 22 | . 7 15 Power 2 | . 1 1 Propulsion 10 | . 4 6 Utility 6 | . 1 5 Weapon 2 | . 1 1 Tool/Special 2 | . . 2 Average Slot Usage (%) 99 | . 99 100 Engine 13 | . 13 14 Treads 28 | . 28 28 Device 8 | . 14 2 Storage 14 | . 14 14 Protection 5 | . . 11 Energy Gun 5 | . 6 4 Ballistic Gun 17 | . 12 22 Launcher 4 | . 8 1 Peak Build Rating 16 | 7 13 16 Average Rating 12 | 5 9 15 On Entrance 6 | . 7 13 Avg Prop Armor Cover (%) . | . . . Naked Turns . | . . . Heaviest Build 55 | 13 51 55 Greatest Support 46 | 40 46 46 Greatest Overweight (x) 1 | . 1 1 Average Overweight (x) . | . . 1 Largest Inventory Capacity 20 | 8 20 20 Average Capacity 16 | 7 13 20 Most Carried 20 | 5 20 20 Average Carried 15 | 3 12 19 Final Capacity 20 | 8 20 20 Final Carried 20 | 4 20 20 Class Distribution -------------------- 100% | Mutant Dominant Class ---------------- Mutant | -10/Materials Mutant | -10/Subcaves Resources | -11 -10 -10 ----------- Run | Yrd Mat Sub Matter Collected 1162 | 292 480 390 Remotely . | . . . Salvage Created 1422 | 91 771 560 Parts 92 | 5 51 36 Haulers Intercepted 2 | . 2 . Recyclers Shooed 3 | . 3 . Parts Field Recycled . | . . . Retrieved Matter . | . . . Parts Self-Destructed 2 | . . 2 Prevented . | . . . Parts Restored . | . . . Kills | -11 -10 -10 ------- Run | Yrd Mat Sub Combat Hostiles Destroyed 33 | . 20 13 Guns 21 | . 8 13 AOE 12 | . 12 . Classes Destroyed 11 | 2 6 3 Builder 1 | . 1 . Tunneler 2 | 2 . . Hauler 2 | . 2 . Recycler 2 | 1 1 . Operator 3 | . 3 . Watcher 3 | . 3 . Swarmer 6 | . 6 . Grunt 15 | . 14 1 Sentry 1 | . . 1 Artisan 1 | . . 1 Subdweller 11 | . . 11 Best Kill Streak 6 | 3 6 3 Combat Bots Only 5 | . 5 3 Max Kills in Single Turn 2 | 1 2 1 Gunslinging . | . . . Exploded 2 | . 2 . Melee . | . . . Uniques/NPCs Destroyed . | . . . Combat | -11 -10 -10 -------- Run | Yrd Mat Sub Hostile Shots Fired 123 | . 51 72 Missed 44 | . 19 25 Hits 79 | . 32 47 Projectile 79 | . 32 47 Critical Strikes 5 | . 3 2 Damage Taken 1480 | . 464 1016 Core 250 | . 55 195 Absorbed by Shields 108 | . 65 43 Regen/Repaired (Parts) 57 | . 57 . Core Remaining (%) 100 | 100 . . Volleys Fired 134 | 11 70 53 Largest 2 | 2 2 2 Hottest 70 | 40 65 70 Shots Fired 261 | 22 136 103 Gun 240 | 22 122 96 Cannon . | . . . Launcher 21 | . 14 7 Special . | . . . Kinetic 181 | 22 95 64 Thermal . | . . . Explosive 21 | . 14 7 Electromagnetic 59 | . 27 32 Robot Hit Streak 24 | 8 16 24 Robot Miss Streak 3 | 3 3 3 Penetration Max . | . . . Secondary Targets 2 | . . 2 Max Gunslinging Chain 1 | . . 1 Shots Hit Robots 176 | 15 84 77 Core Hits 89 | 6 53 30 Critical Kills 1 | . . 1 Critical Parts Destroyed 1 | 1 . . Critical Strikes 4 | 1 1 2 Destroy 3 | 1 . 2 Corrupt 1 | . 1 . Melee Attacks . | . . . Impact . | . . . Slashing . | . . . Piercing . | . . . Sneak Attacks . | . . . Combat Hostiles . | . . . Follow-up Attacks . | . . . Damage Inflicted 3075 | 125 1812 1138 Guns 1969 | 125 847 997 Cannons . | . . . Explosions 1104 | . 963 141 Melee . | . . . Ramming 2 | . 2 . Kinetic 1308 | 125 503 680 Thermal 95 | . 95 . Explosive 1009 | . 868 141 Electromagnetic 661 | . 344 317 Impact . | . . . Slashing . | . . . Piercing . | . . . Highest Corruption 2 | . 2 2 Average Corruption 2 | . 2 2 Corruption Purged . | . . . Corruption Blocked . | . . . Effects 34 | . 10 24 Message Errors 5 | . 1 4 Matter Fused 13 | . 5 8 Heat Flow Errors 4 | . 1 3 Energy Discharges 9 | . 2 7 Data Loss (minor) 1 | . . 1 Misfires 2 | . 1 1 Overload Shots . | . . . Overflow Damage 30 | . 30 . Projectiles . | . . . Explosions 30 | . 30 . Melee . | . . . Knockbacks . | . . . Impact . | . . . Kinetic . | . . . Secondary . | . . . Self-Inflicted Damage 80 | . 52 28 Shots 3 | . 2 1 Rammed 1 | . 1 . Targets Rammed 1 | . 1 . Kicked . | . . . Crushed . | . . . Highest Temperature 213 | . 142 213 Average Temperature 34 | . 24 70 Received Heat Transfer 585 | . 197 388 Siege Activations . | . . . Martial Activations . | . . . Shielding Activations . | . . . Robots Disrupted . | . . . Combat Hostiles . | . . . Robots Corrupted . | . . . Combat Hostiles . | . . . Parts Fried 2 | . 1 1 Impact Corruptions . | . . . Robots Melted . | . . . Combat Hostiles . | . . . Parts Melted 1 | . . 1 Heat Transferred 50 | . 50 . Parts Sabotaged . | . . . Parts Stolen . | . . . Parts Stripped . | . . . Power Chain Reactions 3 | . 3 . Alert | -11 -10 -10 ------- Run | Yrd Mat Sub Maximum Alert Level 1 | . 1 . Low Security (%) 75 | 100 74 . Level 1 24 | . 25 . Level 2 . | . . . Level 3 . | . . . Level 4 . | . . . Level 5 . | . . . High Security . | . . . Max Security . | . . . Peak Influence 294 | 5 294 . Initial . | . . . Average 132 | 1 140 . Influence Increases 758 | 15 703 40 Destroy 0b10 Robot/C 440 | . 400 40 Destroy 0b10 Robot/NC 65 | 15 50 . Destroy Leader 110 | . 110 . Successful Hack 10 | . 10 . Select Force Hacks 60 | . 60 . Disable Machine 15 | . 15 . Destroy Structure 58 | . 58 . Influence Decreases 758 | 15 510 233 Entered New Map 93 | . . 93 Time Decay 665 | 15 510 140 Squads Dispatched 6 | . 6 . Investigation 4 | . 4 . Extermination . | . . . Reinforcement 2 | . 2 . Assault . | . . . Garrison . | . . . Intercept . | . . . Searches Triggered . | . . . Construction Impeded . | . . . Haulers Reinforced . | . . . Active Scanning Responses . | . . . Cargo Convoy Interrupts . | . . . Stealth | -11 -10 -10 --------- Run | Yrd Mat Sub Distress Signals 2 | . 2 . Communications Jammed . | . . . Distress Signals . | . . . Times Spotted 41 | . 27 14 Peak Tracking Total 5 | . 5 3 Tactical Retreats . | . . . Traps | -11 -10 -10 ------- Run | Yrd Mat Sub Traps Triggered 2 | . 2 . Indirectly . | . . . Trap Hack Attempts . | . . . Triggered . | . . . Disarmed . | . . . Reprogrammed . | . . . Reused . | . . . Traps Extracted . | . . . Installed . | . . . Triggered . | . . . Machines | -11 -10 -10 ---------- Run | Yrd Mat Sub Machines Disabled 1 | . 1 . Max in Single Turn 1 | . 1 . Machines Repaired . | . . . Machines Dismantled . | . . . Machines Sabotaged . | . . . Overloaded Fab Kills . | . . . Hacking | -11 -10 -10 --------- Run | Yrd Mat Sub Machines Accessed 9 | . 9 . Terminals 6 | . 6 . Fabricators . | . . . Repair Stations 1 | . 1 . Recycling Units 2 | . 2 . Scanalyzers . | . . . Garrison Access . | . . . Total Hacks 22 | . 22 . Successful 8 | . 8 . Failed 13 | . 13 . Catastrophic 3 | . 3 . Database Lockouts 1 | . 1 . Manual 19 | . 19 . Terminals 18 | . 18 . Fabricators . | . . . Repair Stations 2 | . 2 . Recycling Units 2 | . 2 . Scanalyzers . | . . . Garrison Access . | . . . Terminal Hacks 3 | . 3 . Part Schematic 1 | . 1 . Robot Analysis 1 | . 1 . Branch Access Points 1 | . 1 . Fabricator Hacks . | . . . Repair Station Hacks 2 | . 2 . Scan Component 1 | . 1 . Repair 1 | . 1 . Recycling Unit Hacks . | . . . Scanalyzer . | . . . Garrison Access Hacks . | . . . Unauthorized Hacks 3 | . 3 . Terminals 1 | . 1 . Operators 1 | . 1 . Fabricators . | . . . Repair Stations . | . . . Recycling Units 2 | . 2 . Tunnel 2 | . 2 . Scanalyzers . | . . . Garrison Access . | . . . Data Cores Recovered . | . . . Used . | . . . Hacking Detections 6 | . 6 . Full Trace Events 2 | . 2 . Feedback Events . | . . . Feedback Blocked . | . . . Robot Schematics Acquired . | . . . Robots Built . | . . . Authchips . | . . . Time . | . . . Total Robot Build Rating . | . . . Part Schematics Acquired 1 | . 1 . Parts Built . | . . . Authchips . | . . . Time . | . . . Total Part Build Rating . | . . . Part Studies Acquired . | . . . Parts Repaired 1 | . 1 . Time 26 | . 26 . Parts Recycled . | . . . Recycled Matter . | . . . Retrieved Matter . | . . . Retrieved Components . | . . . Parts Scanalyzed . | . . . Part Schematics Acquired . | . . . Parts Damaged . | . . . Bothacking | -11 -10 -10 ------------ Run | Yrd Mat Sub Used RIF Installer . | . . . Robots Hacked . | . . . Non-combat . | . . . Combat . | . . . Robot Hacks Applied . | . . . Relay Couplers Released . | . . . Fabnet Peak Effective % . | . . . Robots Rewired . | . . . Allies Hacked . | . . . Hacks Repelled . | . . . Allies | -11 -10 -10 -------- Run | Yrd Mat Sub Total Allies . | . . . Largest Group . | . . . Highest-Rated Group . | . . . Highest-Rated Ally . | . . . Total Orders . | . . . Ally Attacks . | . . . Total Damage . | . . . Kills . | . . . Allies Corrupted . | . . . Allies Melted . | . . . Intel | -11 -10 -10 ------- Run | Yrd Mat Sub Active Infowar (turns) 578 | 26 552 . Seismic 578 | 26 552 . Robot Analysis Total 1 | . 1 . Derelict Logs Recovered 1 | . . 1 Drone Launches . | . . . Drone Recoveries . | . . . Exploration | -11 -10 -10 ------------- Run | Yrd Mat Sub Turns Passed 4423 | 136 2191 2096 Spaces Moved 1923 | 66 1083 774 Core 11 | 11 . . Treads 1912 | 55 1083 774 Legs . | . . . Wheels . | . . . Hover . | . . . Flight . | . . . Fastest Speed 50 | 50 160 240 Average Speed 204 | 141 177 247 Slowest Speed 250 | 160 240 250 Overloaded Moves . | . . . Propulsion Burnouts . | . . . Robots Hopped . | . . . Potential Cave-ins . | . . . Cave-ins Triggered . | . . . Exploration Rate (%) 53 | 6 99 54 Regions Visited 2 Branch Regions 1 Pre-discovered Areas 2 | . 2 . Known Exits Taken . | . . . Unknown Exits Taken 2 | 1 1 . Scrap Searched . | . . . Spaces Dug . | . . . Terrain Destroyed 122 | . 77 45 Melee . | . . . Projectile . | . . . AOE 122 | . 77 45 Terrain Rammed . | . . . Walls Destroyed . | . . . Machines Disabled . | . . . Actions | -11 -10 -10 --------- Run | Yrd Mat Sub Total 2187 | 88 1243 856 Wait 37 | . 30 7 Move 1921 | 65 1082 774 Hop . | . . . Pick Up 35 | 5 25 5 Fast Attach 7 | 6 1 . Attach 5 | 1 . 4 Detach . | . . . Swap 23 | . 16 7 Drop 24 | . 18 6 Fire 134 | 11 70 53 Melee . | . . . Ram . | . . . Kick . | . . . Crush 1 | . 1 . Escape Stasis . | . . . Rewire . | . . . Trap . | . . . Miscellaneous . | . . . Route ------- -11/Scrapyard -10/Materials (discovered 5 exits: [*Mat x3] / *Min / [*Sub]) -10/Subcaves (discovered 2 exits: [*Mat] / [*Scr]) History --------- Turn | Location | Event 6 | -11/Scrapyard | Discovered new exit (range 15) 137 | -11/Scrapyard | Entered Materials 138 | -10/Materials | Met a group of wandering Federalists 309 | -10/Materials | Build established: Mutant 326 | -10/Materials | Discovered new exit (range 15) 467 | -10/Materials | Discovered new exit (range 9) 805 | -10/Materials | Discovered new exit (range 9) 1183 | -10/Materials | Identified exit to Mines 1580 | -10/Materials | Repaired Ion Engine 1649 | -10/Materials | Discovered new exit (range 16) 1689 | -10/Materials | Central database locked down 2328 | -10/Materials | Entered Subcaves 2329 | -10/Subcaves | Continued accompanying wandering Federalists (3) 2329 | -10/Subcaves | Approached by a straggling Scientist 2376 | -10/Subcaves | Shifting Twisted Machinery released Sub. Monowheel 2718 | -10/Subcaves | A Subdweller sparked back to life 2718 | -10/Subcaves | A Subdweller sparked back to life 2718 | -10/Subcaves | A Subdweller sparked back to life 2743 | -10/Subcaves | Core integrity fell below 50% 2772 | -10/Subcaves | Found Prototype Leg 2783 | -10/Subcaves | Lost 3 parts (1p1u1w) 2912 | -10/Subcaves | Core integrity fell below 20% 3169 | -10/Subcaves | Ambushed by angry Subdweller bent on revenge 3330 | -10/Subcaves | Learned Materials terminal intel 3558 | -10/Subcaves | Shifting Twisted Machinery released Mak. Thermal Plating 3558 | -10/Subcaves | Shifting Twisted Machinery released Sub. Machine Gun 4236 | -10/Subcaves | Discovered new exit (range 11) 4424 | -10/Subcaves | Destroyed by N4-PDY(R) with Subdweller Laser Last Messages --------------- 03330_ Acquired derelict log, extracted data. Data stored: Materials terminal intel. 03347_ System corrupted: Energy discharge (-82). 03391_ System corrupted: Heat flow error (+166). 03488_ System corrupted: Matter fused (-8). Mak. Thermal Plating falls loose from the Twisted Machinery. Sub. Machine Gun falls loose from the Twisted Machinery. 03563_ System corrupted: Energy discharge (-92). 03595_ Dropped Sub. Machine Gun. 03637_ Dropped Lgt. Armor Plating. 03640_ Acquired Mak. Thermal Plating. 03665_ System corrupted: Matter fused (-5). 03893_ System corrupted: Heat flow error (+188). 03918_ System corrupted: Matter fused (-7). 04060_ System corrupted: FCS attempts to trigger Sub. Machine Gun. 04060_ System corrupted: Sub. Machine Gun misfires. 04093_ System corrupted: Matter fused (-5). 04236_ EXIT=FOUND 04253_ J3-WJI(R) destroyed. 04261_ Acquired 49 matter. Map ----- +----------------------------------------------------+ | ???????????????????????# #??? | | ???????????????????????# #??? | | ???????????????????????####""""#### ##??? | | ??????????????????????????##""##??## #???? | | ????????????????????????" #"######## ## ##???? | | ???????????????????????"" """""[ ## ##??##????? | | ???????????????????????"" " " ! &## #?????????? | | ????????????????????? < # ##&= # ##?###????? | | ???????????????????????????????# # ## ##???? | | ??????????????????????????????## ## #???? | | ??????????????????????????????# ## ##???? | | ??????????????????????????????# ##????? | | ????????????????????????####??## ##?????? | | ????????????????????????# #### ####??????? | | ?????????????????????????# ####??????? | | ?????????????????????????## ## #??????? | | ??????????????????????????## #??????? | | ???????????????????????????## ###????? | | ????????????????????????????# #????? | | ???????????????????????????## ##????? | | ??????????????????????????## ### ##????? | | ??????????????????????????# ##### ##???? | | ?????????????????????###?## #?## #???? | | ?????????????????????# ## #?# #???? | | ?????????????????????# #?# ##???? | | ?????????????????????# @ #?## #????? | | ?????????????????????# = #### ## #????? | | ??????????????????? R #### % ###????? | | ???????????????? ###??# * ###?????? | | ???????????????# ## ####????# ##????? | | ???????????????# ??###????????# ### ##???? | | ???????????????##??????????????## ### ##??? | | ????????????????????????????????###?## ##?? | | ?????????????????????????????????????# ##? | | ?????????????????????????????????????# """ ## | | ????????????????????????????????????## " # | | ???????????????????????????????????## "" ## # | | ???????????????????????????????????#" " #### ## | | ???????????????????????????????????### " ### ##? | | ???????????????????????????????# ???#""" ##?? | | ??????????????????????????????## ## " ###??? | | ??????????????????????????????# """ ####????? | | ?????????????????????????????# """ ###????? | | ????????????????????????????? """%!" ###??? | | ??????????????????????????????"" *""" ##" ##?? | | ????????????????????????????#" """"" ### #?? | | ????????????????????????????## """ ?## ### | | ?????????????????????????????# " ??# # | | ??????????????????????????????? ?## | | ??????????????????????????????? ??# | +----------------------------------------------------+ Best States ------------- Heat Dissipation 25 Energy Generation 10 Energy Capacity 250 Matter Stores 300 Matter Capacity 300 Sight Range 16 Terrain Scan Density 10 Armor Coverage 150 Evasion (%) 50 Recoil Reduction 2 Item Schematics ----------------- Signal Interpreter | -10/Materials | Hacked Robot Schematics ------------------ None Fabricated ------------ Nothing Repaired ---------- Ion Engine | 5% | -10/Materials Studied --------- None Alien Tech Used ----------------- None Achievements -------------- None Challenges ------------ None Game ------ Seed SurgeDisintegrationLog Manual? 0 Play Time 00:24:37 Cumulative 154.0 hours Start 2026.01.28 @ 20:24:46 End 2026.01.28 @ 20:48:50 Sessions 1 Manual Loads 0 Difficulty Rogue Special Mode None Game No. 191 Rogue 186 Adventurer 5 Explorer 0 Win Type - Total 5 Types 4/0/0/1/0/0/0/0/0/0 Lore% 45 Gallery% 61 Achievement% 49 Wizard Run 0 Options --------- Layout 0 ASCII 0 Keyboard 1 Movement Vi Keybinds 0 Fullscreen 1 Font 24/Smallcaps Map View 76x50 Zoom Use 1% Tactical HUD 1 Map Filters NONE Filters NONE Steam 1 RUN: 9dbc1d61-415e-429c-91c2-de0abf3865a2